[Event "3rd Rio Open-Blitz 2024"]
[Site "Rio de Janeiro"]
[Date "2024.04.27"]
[Round "5.4"]
[White "Becker, Rogerio Sperb"]
[Black "Fier, Alexandr"]
[Result "0-1"]
[ECO "A30"]
[WhiteElo "2054"]
[BlackElo "2566"]
[Annotator "TA"]
[PlyCount "92"]
[EventDate "2024.04.12"]
[EventType "swiss"]
[EventCountry "BRA"]
[SourceTitle "playchess.com"]
[Source "ChessBase"]
[SourceQuality "1"]
[TimeControl "180+2"]

{[%evp 21,92,3,12,-10,0,0,0,-28,-19,-34,-8,-14,0,0,0,-10,-6,-7,9,12,21,0,20,0,0,0,27,-42,-9,-59,-71,-162,-147,-234,-204,-235,-127,-122,-116,-114,-122,-116,-114,-139,-138,-228,-222,-222,-204,-367,-353,-378,-401,-374,-184,-206,-49,-49,-49,-49,-49,-80,-49,-49,-72,-72,-63,-744,-692,-756,-729,-29983,-29983]} 1. c4 {[%emt 0:00:02]} Nf6 {[%emt 0:00:02]} 2. Nf3 {[%emt 0:00:00]} b6 {[%emt 0:00:00]} 3. g3 {[%emt 0:00:02]} Bb7 {[%emt 0:00:01]} 4. Bg2 {[%emt 0:00:00]} e6 {[%emt 0:00:01]} 5. O-O {[%emt 0:00:02]} c5 {[%emt 0:00:01]} 6. Nc3 {[%emt 0:00:05]} a6 {[%emt 0:00:01]} 7. d4 {[%emt 0:00:02]} cxd4 {[%emt 0:00:01]} 8. Qxd4 {[%emt 0:00:01]} d6 {[%emt 0:00:01]} 9. Bg5 {[%emt 0:00:02]} Nbd7 {[%emt 0:00:01]} 10. Rfd1 {[%emt 0:00:09]} Be7 {[%emt 0:00:01]} 11. Bxf6 {[%emt 0:00:03]} Nxf6 {[%emt 0:00:02]} 12. Qf4 {[%emt 0:00:03]} Qc7 {[%emt 0:00:04]} 13. Rac1 {[%emt 0:00:15]} O-O {[%emt 0:00:02]} 14. Ng5 {[%emt 0:00:13] The position is equal.} Bxg2 {[%emt 0:00:02]} 15. Kxg2 {[%emt 0:00:01]} Qb7+ {[%emt 0:00:13]} (15... b5 $5) 16. Qf3 {[%emt 0:00:21]} Rfb8 {[%emt 0:00:02]} 17. Qxb7 {[%emt 0:00:08]} Rxb7 {[%emt 0:00:01]} 18. Nge4 {[%emt 0:00:02][%cal Bg5e4,Be4d2,Bd2f3,Bf3d4][%mdl 32]} Ne8 {[%emt 0:00:01]} 19. a4 {[%emt 0:00:01]} f5 {[%emt 0:00:04]} 20. Nd2 {[%emt 0:00:06]} Kf7 {[%emt 0:00:01]} 21. Nf3 {[%emt 0:00:03]} Bf6 {[%emt 0:00:07]} 22. Nd4 {[%emt 0:00:06]} Rc8 {[%emt 0:00:01]} 23. b3 {[%emt 0:00:04]} g6 {[%emt 0:00:12][%cal Od6d5]} 24. f4 {[%emt 0:00:11]} (24. e4 $11) 24... Ke7 {[%emt 0:00:03]} (24... d5 $5 25. e3 (25. cxd5 Rbc7 $17) 25... Rbc7 $17 (25... dxc4 26. b4 $17)) 25. Kf3 {[%emt 0:00:03]} (25. e3 $11) 25... Rbc7 $15 {[%emt 0:00:04][%cal Od6d5]} 26. Na2 {[%emt 0:00:10]} (26. e4 $17) 26... d5 $19 {[%emt 0:00:11][%cal Rd5c4]} 27. e3 {[%emt 0:00:52]} (27. Nb4 $17 {was called for.} a5 (27... dxc4 28. Nxa6 Rd7 29. Nc6+ Rxc6 30. Rxd7+ Kxd7 31. Nb8+ Kd6 32. Nxc6 $11) 28. Nbc6+ (28. Na6 $2 Ra7 $19) 28... Rxc6 29. Nxc6+ Rxc6 30. cxd5 Rxc1 31. Rxc1 exd5 32. Rc6) 27... dxc4 {[%emt 0:00:02]} 28. b4 {[%emt 0:00:05]} Nd6 {[%emt 0:00:06]} (28... c3 $19 29. Ke2 Bxd4 30. Rxd4 Nf6) 29. Nc3 $17 {[%emt 0:00:05]} h6 {[%emt 0:00:05]} 30. b5 {[%emt 0:00:06]} axb5 {[%emt 0:00:07]} 31. axb5 {[%emt 0:00:05]} Bxd4 {[%emt 0:00:10]} 32. Rxd4 {[%emt 0:00:09]} Rc5 {[%emt 0:00:01][%cal Og6g5]} 33. Rcd1 {[%emt 0:00:03]} (33. Rb1 $17 {keeps fighting.}) 33... Nxb5 $19 {[%emt 0:00:10]} 34. Rd7+ {[%emt 0:00:04]} Kf6 {[%emt 0:00:02]} 35. Nxb5 {[%emt 0:00:04] [#]} (35. Na4 {was worth a try.} R5c6 36. Rb7) 35... Rxb5 {[%emt 0:00:01][%mdl 4096] Endgame. KRR-KRR} 36. Rh7 {[%emt 0:00:02]} Rd5 {[%emt 0:00:01]} 37. Ra1 {[%emt 0:00:04]} c3 {[%emt 0:00:26]} (37... e5 $142 38. Raa7 e4+ 39. Ke2 Rcd8) 38. Raa7 {[%emt 0:00:02]} Rf8 {[%emt 0:00:01] Prevents Raf7+.} ({Black should try} 38... e5 $19 39. Rae7 e4+ 40. Kg2 Rf8 (40... Rd2+ 41. Kh3 $11)) 39. Rac7 $1 $15 {[%emt 0:00:06]} Rc5 {[%emt 0:00:18]} 40. Rxc5 $1 {[%emt 0:00:01]} bxc5 {[%emt 0:00:01] KR-KR} 41. Rc7 $1 {[%emt 0:00:01]} Rd8 {[%emt 0:00:00] [#] ( -> ...Rd5)} 42. Rxc5 {[%emt 0:00:01]} Rd3 {[%emt 0:00:01]} 43. Rc7 {[%emt 0:00:01]} g5 {[%emt 0:00:01] Threatens to win with ...g4+.} 44. h4 $2 {[%emt 0:00:04][%mdl 8192]} (44. h3 $15) 44... g4+ $19 {[%emt 0:00:06]} 45. Ke2 {[%emt 0:00:01]} Rd2+ {[%emt 0:00:00]} 46. Kf1 {[%emt 0:00:01]} c2 {[%emt 0:01:35] Weighted Error Value: White=0.56/Black=0.25 (precise) .  Loses game:     	White=1     	---        Mistake:       	White=6     	Black=3      Inaccurate:     	White=1     	Black=4      OK:         	White=9     	Black=11     Best:        	White=3     	Black=4      Strong:       	White=3     	---} 0-1

[Event "3rd Rio Open-Blitz 2024"]
[Site "Rio de Janeiro"]
[Date "2024.04.27"]
[Round "5.5"]
[White "Guimaraes, Lucas Dos S Peixoto"]
[Black "Guimaraes, Wagner Peixoto"]
[Result "1/2-1/2"]
[ECO "B02"]
[WhiteElo "2019"]
[BlackElo "2140"]
[Annotator "NA RC"]
[PlyCount "66"]
[EventDate "2024.04.12"]
[EventType "swiss"]
[EventCountry "BRA"]
[SourceTitle "playchess.com"]
[Source "ChessBase"]
[SourceQuality "1"]
[TimeControl "180+2"]

1. e4 {[%emt 0:00:01]} d5 {[%emt 0:00:12]} 2. exd5 {[%emt 0:00:04]} Nf6 {[%emt 0:00:01]} 3. Nc3 {[%emt 0:00:11]} Nxd5 {[%emt 0:00:01]} 4. Bc4 {[%emt 0:00:01]} Nb6 {[%emt 0:00:04]} 5. Bb3 {[%emt 0:00:01]} Nc6 {[%emt 0:00:01]} 6. d3 {[%emt 0:00:04]} Bf5 {[%emt 0:00:05]} 7. Be3 {[%emt 0:00:05]} e6 {[%emt 0:00:02]} 8. Nge2 {[%emt 0:00:07]} a5 {[%emt 0:00:07]} 9. a4 {[%emt 0:00:08]} Be7 {[%emt 0:00:06]} 10. Ng3 {[%emt 0:00:04]} Bg6 {[%emt 0:00:01]} 11. Qg4 {[%emt 0:00:17]} h5 {[%emt 0:00:07]} 12. Qe2 {[%emt 0:00:01]} Nd4 {[%emt 0:00:07]} 13. Bxd4 {[%emt 0:00:13]} Qxd4 {[%emt 0:00:01]} 14. Nb5 {[%emt 0:00:05]} Qd7 {[%emt 0:00:14]} 15. Qe5 {[%emt 0:00:02]} Bd6 {[%emt 0:00:48]} 16. Qxg7 {[%emt 0:00:01]} O-O-O {[%emt 0:00:06]} 17. O-O-O {[%emt 0:00:02]} Rdg8 {[%emt 0:00:32]} 18. Qd4 {[%emt 0:00:09]} h4 {[%emt 0:00:06]} 19. Ne4 {[%emt 0:00:03]} Bf4+ {[%emt 0:00:06]} 20. Kb1 {[%emt 0:00:01]} Qxd4 {[%emt 0:00:04]} 21. Nxd4 {[%emt 0:00:03]} Bxe4 {[%emt 0:00:13]} 22. dxe4 {[%emt 0:00:02]} Rxg2 {[%emt 0:00:02]} 23. Rhg1 {[%emt 0:00:16]} Rxf2 {[%emt 0:00:06]} 24. Rgf1 {[%emt 0:00:04]} Rxf1 {[%emt 0:00:03]} 25. Rxf1 {[%emt 0:00:01]} e5 {[%emt 0:00:08]} 26. Nb5 {[%emt 0:00:04]} f6 {[%emt 0:00:06]} 27. h3 {[%emt 0:00:02]} Rd8 {[%emt 0:00:05]} 28. Rg1 {[%emt 0:00:06]} Bg3 {[%emt 0:00:03]} 29. Rf1 {[%emt 0:00:01]} c6 {[%emt 0:00:06]} 30. Be6+ {[%emt 0:00:08]} Kb8 {[%emt 0:00:00]} 31. Nc3 {[%emt 0:00:00]} Bf4 {[%emt 0:00:07]} 32. Rg1 {[%emt 0:00:02]} Bg3 {[%emt 0:00:01]} 33. Rf1 {[%emt 0:00:01]} Bf4 {[%emt 0:00:01]} 1/2-1/2

[Event "3rd Rio Open-Blitz 2024"]
[Site "Rio de Janeiro"]
[Date "2024.04.27"]
[Round "5.6"]
[White "Viana, Dirceu"]
[Black "Lage, Pedro Ferreira"]
[Result "0-1"]
[ECO "A06"]
[WhiteElo "2172"]
[BlackElo "2061"]
[Annotator "NA RC"]
[PlyCount "91"]
[EventDate "2024.04.12"]
[EventType "swiss"]
[EventCountry "BRA"]
[SourceTitle "playchess.com"]
[Source "ChessBase"]
[SourceQuality "1"]
[TimeControl "180+2"]

1. Nf3 {[%emt 0:00:02]} d5 {[%emt 0:00:03]} 2. e3 {[%emt 0:00:02]} Nf6 {[%emt 0:00:03]} 3. b3 {[%emt 0:03:04]} Bf5 {[%emt 0:00:03]} 4. Bb2 {[%emt 0:00:00]} e6 {[%emt 0:00:01]} 5. d3 {[%emt 0:00:00]} Nbd7 {[%emt 0:00:02]} 6. Nbd2 {[%emt 0:00:00]} Be7 {[%emt 0:00:06]} 7. c4 {[%emt 0:00:00]} c6 {[%emt 0:00:03]} 8. cxd5 {[%emt 0:00:00]} exd5 {[%emt 0:00:04]} 9. Be2 {[%emt 0:00:00]} h6 {[%emt 0:00:05]} 10. O-O {[%emt 0:00:00]} O-O {[%emt 0:00:03]} 11. a3 {[%emt 0:00:00]} a5 {[%emt 0:00:02]} 12. Qc2 {[%emt 0:00:00]} Qb6 {[%emt 0:00:28]} 13. Rfe1 {[%emt 0:00:00]} Rfe8 {[%emt 0:00:11]} 14. Bf1 {[%emt 0:00:00]} Bh7 {[%emt 0:00:18]} 15. Bc3 {[%emt 0:00:00]} Nc5 {[%emt 0:00:21]} 16. Bd4 {[%emt 0:00:00]} Qb5 {[%emt 0:00:25]} 17. Qc3 {[%emt 0:00:00]} Ne6 {[%emt 0:00:45]} 18. Bxf6 {[%emt 0:00:00]} Bxf6 {[%emt 0:00:01]} 19. d4 {[%emt 0:00:00]} Qb6 {[%emt 0:00:05]} 20. b4 {[%emt 0:00:00]} axb4 {[%emt 0:00:06]} 21. axb4 {[%emt 0:00:02]} Nc7 {[%emt 0:00:04]} 22. Qc5 {[%emt 0:00:06]} Qxc5 {[%emt 0:00:10]} 23. bxc5 {[%emt 0:00:01]} Rxa1 {[%emt 0:00:11]} 24. Rxa1 {[%emt 0:00:00]} Ra8 {[%emt 0:00:01]} 25. Rxa8+ {[%emt 0:00:05]} Nxa8 {[%emt 0:00:00]} 26. Nb3 {[%emt 0:00:01]} Bf5 {[%emt 0:00:05]} 27. Na5 {[%emt 0:00:06]} Bc8 {[%emt 0:00:01]} 28. Nd2 {[%emt 0:00:10]} Nc7 {[%emt 0:00:02]} 29. Be2 {[%emt 0:00:02]} Be7 {[%emt 0:00:03]} 30. h3 {[%emt 0:00:21]} Bd8 {[%emt 0:00:04]} 31. Bg4 {[%emt 0:00:02]} Ne6 {[%emt 0:00:03]} 32. Ndb3 {[%emt 0:00:00]} g6 {[%emt 0:00:03]} 33. Kf1 {[%emt 0:00:00]} h5 {[%emt 0:00:01]} 34. Be2 {[%emt 0:00:00]} Kf8 {[%emt 0:00:01]} 35. Bd3 {[%emt 0:00:01]} Ke7 {[%emt 0:00:01]} 36. Ke2 {[%emt 0:00:00]} Kd7 {[%emt 0:00:02]} 37. f3 {[%emt 0:00:02]} f5 {[%emt 0:00:02]} 38. Kd2 {[%emt 0:00:06]} Kc7 {[%emt 0:00:01]} 39. Kc3 {[%emt 0:00:02]} Bg5 {[%emt 0:00:04]} 40. f4 {[%emt 0:00:01]} Bh4 {[%emt 0:00:02]} 41. Be2 {[%emt 0:00:02]} Be1+ {[%emt 0:00:02]} 42. Kc2 {[%emt 0:00:02]} Bd7 {[%emt 0:00:05]} 43. g4 {[%emt 0:00:03]} hxg4 {[%emt 0:00:01]} 44. hxg4 {[%emt 0:00:00]} Ng7 {[%emt 0:00:06]} 45. gxf5 {[%emt 0:00:05]} Nxf5 {[%emt 0:00:02]} 46. Kd1 {[%emt 0:00:06]} 0-1

[Event "3rd Rio Open-Blitz 2024"]
[Site "Rio de Janeiro"]
[Date "2024.04.27"]
[Round "6.1"]
[White "De Siqueira, Luigy Lira"]
[Black "Labussiere, Yago"]
[Result "0-1"]
[ECO "B51"]
[WhiteElo "2274"]
[BlackElo "2184"]
[Annotator "NA RC"]
[PlyCount "112"]
[EventDate "2024.04.12"]
[EventType "swiss"]
[EventCountry "BRA"]
[SourceTitle "playchess.com"]
[Source "ChessBase"]
[SourceQuality "1"]
[TimeControl "180+2"]

1. e4 {[%emt 0:00:01]} c5 {[%emt 0:00:00]} 2. Nf3 {[%emt 0:00:01]} Nc6 {[%emt 0:00:01]} 3. Bb5 {[%emt 0:00:01]} d6 {[%emt 0:00:05]} 4. O-O {[%emt 0:00:03]} Bd7 {[%emt 0:00:01]} 5. c3 {[%emt 0:00:01]} a6 {[%emt 0:00:01]} 6. Ba4 {[%emt 0:00:03]} b5 {[%emt 0:00:05]} 7. Bc2 {[%emt 0:00:01]} Bg4 {[%emt 0:00:06]} 8. d3 {[%emt 0:00:07]} Nf6 {[%emt 0:00:04]} 9. Re1 {[%emt 0:00:01]} g6 {[%emt 0:00:03]} 10. h3 {[%emt 0:00:02]} Bxf3 {[%emt 0:00:01]} 11. Qxf3 {[%emt 0:00:01]} Bg7 {[%emt 0:00:03]} 12. Bg5 {[%emt 0:00:09]} O-O {[%emt 0:00:03]} 13. Nd2 {[%emt 0:00:01]} b4 {[%emt 0:00:03]} 14. Rac1 {[%emt 0:00:15]} bxc3 {[%emt 0:00:02]} 15. bxc3 {[%emt 0:00:01]} Nd7 {[%emt 0:00:10]} 16. Bb3 {[%emt 0:00:14]} Rb8 {[%emt 0:00:14]} 17. Nc4 {[%emt 0:00:04]} Nce5 {[%emt 0:00:27]} 18. Nxe5 {[%emt 0:02:32]} Nxe5 {[%emt 0:02:09]} 19. Qe2 {[%emt 0:00:00]} c4 {[%emt 0:00:00]} 20. dxc4 {[%emt 0:00:00]} Nd7 {[%emt 0:00:00]} 21. c5 {[%emt 0:00:00]} Nxc5 {[%emt 0:00:00]} 22. Bc4 {[%emt 0:00:00]} Rb6 {[%emt 0:00:00]} 23. Be3 {[%emt 0:00:00]} Qc7 {[%emt 0:00:00]} 24. Bxc5 {[%emt 0:00:12]} Qxc5 {[%emt 0:00:00]} 25. Bxa6 {[%emt 0:00:00]} Qa5 {[%emt 0:00:00]} 26. Bc4 {[%emt 0:00:00]} Bxc3 {[%emt 0:00:00]} 27. Red1 {[%emt 0:00:00]} Bf6 {[%emt 0:00:02]} 28. Bb3 {[%emt 0:00:00]} Kg7 {[%emt 0:00:10]} 29. Qc4 {[%emt 0:00:00]} Rb4 {[%emt 0:00:01]} 30. Qc6 {[%emt 0:00:00]} Qe5 {[%emt 0:00:03]} 31. Qd5 {[%emt 0:00:05]} Qxe4 {[%emt 0:00:02]} 32. Qxe4 {[%emt 0:00:05]} Rxe4 {[%emt 0:00:01]} 33. Bd5 {[%emt 0:00:02]} Ra4 {[%emt 0:00:01]} 34. Rc7 {[%emt 0:00:02]} Kg8 {[%emt 0:00:04]} 35. Bb3 {[%emt 0:00:01]} Ra5 {[%emt 0:00:01]} 36. Rdc1 {[%emt 0:00:02]} e6 {[%emt 0:00:05]} 37. Rd7 {[%emt 0:00:03]} d5 {[%emt 0:00:00]} 38. Kf1 {[%emt 0:00:02]} Rb5 {[%emt 0:00:02]} 39. Rcc7 {[%emt 0:00:02]} Be5 {[%emt 0:00:02]} 40. Ra7 {[%emt 0:00:02]} Rc5 {[%emt 0:00:01]} 41. Ke2 {[%emt 0:00:02]} Bd4 {[%emt 0:00:02]} 42. g3 {[%emt 0:00:03]} Rc1 {[%emt 0:00:02]} 43. a4 {[%emt 0:00:03]} Bxa7 {[%emt 0:00:01]} 44. Rxa7 {[%emt 0:00:01]} Rb1 {[%emt 0:00:02]} 45. Bc2 {[%emt 0:00:03]} Rb2 {[%emt 0:00:02]} 46. Kd1 {[%emt 0:00:01]} Rc8 {[%emt 0:00:02]} 47. Bd3 {[%emt 0:00:00]} Rxf2 {[%emt 0:00:02]} 48. a5 {[%emt 0:00:01]} Rf3 {[%emt 0:00:05]} 49. Ke2 {[%emt 0:00:03]} Rxg3 {[%emt 0:00:02]} 50. a6 {[%emt 0:00:01]} Rxh3 {[%emt 0:00:02]} 51. Rb7 {[%emt 0:00:02]} Rh2+ {[%emt 0:00:01]} 52. Kd1 {[%emt 0:00:01]} Ra2 {[%emt 0:00:06]} 53. a7 {[%emt 0:00:02]} Kg7 {[%emt 0:00:02]} 54. Bb1 {[%emt 0:00:05]} Ra1 {[%emt 0:00:02]} 55. Kd2 {[%emt 0:00:01]} Rc5 {[%emt 0:00:01]} 56. Bd3 {[%emt 0:00:06]} Rca5 {[%emt 0:00:01]} 0-1

[Event "3rd Rio Open-Blitz 2024"]
[Site "Rio de Janeiro"]
[Date "2024.04.27"]
[Round "6.2"]
[White "Fier, Alexandr"]
[Black "Urquiza, Marcello de Albuquer"]
[Result "1-0"]
[ECO "B29"]
[WhiteElo "2566"]
[BlackElo "2005"]
[Annotator "TA"]
[PlyCount "55"]
[EventDate "2024.04.12"]
[EventType "swiss"]
[EventCountry "BRA"]
[SourceTitle "playchess.com"]
[Source "ChessBase"]
[SourceQuality "1"]
[TimeControl "180+2"]

{[%evp 10,55,33,33,86,95,90,16,10,-10,11,-3,0,2,-6,0,0,-14,38,33,152,114,105,115,114,100,275,220,802,791,626,416,422,423,414,414,29989,29990,29990,29990,29991,29992,29992,747,29990,29991,29994,29995]} 1. e4 {[%emt 0:00:01]} c5 {[%emt 0:00:01]} 2. Nf3 {[%emt 0:00:01]} Nf6 {[%emt 0:00:00]} 3. e5 {[%emt 0:00:02]} Nd5 {[%emt 0:00:01]} 4. Nc3 {[%emt 0:00:01]} e6 {[%emt 0:00:01]} 5. Ne4 {[%emt 0:00:01]} Nc6 {[%emt 0:00:04]} 6. c4 {[%emt 0:00:02][%cal Od2d4] Threatens to win with d4!} Nb6 {[%emt 0:00:09]} ({Black should try} 6... Ndb4 $14) 7. d4 $16 {[%emt 0:00:31]} cxd4 {[%emt 0:00:18] [#]} 8. c5 {[%emt 0:00:01] White has more active pieces.} (8. Nd6+ $1 $16 Bxd6 9. exd6) 8... Nd5 $11 {[%emt 0:00:06][%cal Of8c5] The position is equal.} 9. Bg5 {[%emt 0:00:17]} Qa5+ {[%emt 0:00:14]} 10. Bd2 $132 {[%emt 0:00:01][%mdl 2048] White is fighting back} Qc7 {[%emt 0:00:16]} 11. Nd6+ {[%emt 0:00:01]} Bxd6 {[%emt 0:00:01]} 12. cxd6 {[%emt 0:00:07]} Qb6 {[%emt 0:00:03]} 13. Bc4 {[%emt 0:00:02]} O-O {[%emt 0:00:38]} (13... Qxb2 $11 14. Rb1 Qa3) 14. O-O $14 {[%emt 0:00:02]} f6 {[%emt 0:00:10]} (14... Ne3 $1 $14 15. fxe3 dxe3) 15. Bxd5 $16 {[%emt 0:00:01]} exd5 {[%emt 0:00:01]} 16. exf6 {[%emt 0:00:01]} Rxf6 {[%emt 0:00:04]} 17. Re1 {[%emt 0:00:01]} Re6 {[%emt 0:00:18] Black cannot hold the game after this.} (17... Rf8 $16) 18. Ng5 {[%emt 0:00:10]} Rxe1+ $2 {[%emt 0:00:15]} (18... h6) 19. Qxe1 $18 {[%emt 0:00:02]} Qd8 {[%emt 0:00:02] Prevents Qe8+.} 20. Qb1 {[%emt 0:00:01]} g6 {[%emt 0:00:07]} 21. Qd3 {[%emt 0:00:01]} Qf6 {[%emt 0:00:10][%cal Of6f5]} 22. Re1 {[%emt 0:00:01] White wants to mate with Qh3.} Qxd6 {[%emt 0:00:10]} (22... Qf5 $18 23. Re8+ Kg7 24. Qxf5 gxf5 25. Re7+ Kf6 (25... Nxe7 26. dxe7 h6 27. e8=Q hxg5 28. Bxg5 d6 29. Qe7+ Kg6 30. Qf6+ Kh7 31. Qf7+ Kh8 32. Bf6#)) 23. Re8+ {[%emt 0:00:02]} Kg7 {[%emt 0:00:00]} 24. Qh3 {[%emt 0:00:07]} h6 {[%emt 0:00:27][%cal Bh7h6,Bh6h5][%mdl 32] [#]} 25. Rh8 $3 {[%emt 0:00:50][%mdl 512]} h5 {[%emt 0:00:04]} 26. Re8 {[%emt 0:00:18]} (26. Qf3 $142 Kxh8 27. Nf7+ Kg7 28. Nxd6 Nd8 29. Bg5 (29. Qxd5 Ne6 30. Qf3 Nd8 31. Ne8+ Kg8 32. Qf6 Ne6 33. Qe7 Kh8 34. Nf6 h4 35. Qh7#) 29... Kg8 30. Qf6 (30. Bxd8 Kh7 31. Qf7+ Kh6 32. h4 d3 33. Bg5#) 30... Kh7 31. Qe7+ (31. Qxd8 Rb8 32. Qe7+ Kh8 33. Bf6+ Kg8 34. Qg7#) 31... Kg8 32. Bf6 Ne6 33. Qf7#) 26... b6 {[%emt 0:00:02]} 27. Qf3 {[%emt 0:00:02]} Qf6 {[%emt 0:00:05] [#]} 28. Rg8+ $3 {[%emt 0:00:01][%mdl 512] Weighted Error Value: White=0.23 (precise) /Black=0.79.  Loses game:     	---       	Black=1      Mistake:       	White=1     	Black=4      OK:         	White=5     	Black=5      Best:        	White=4     	Black=2} 1-0

[Event "3rd Rio Open-Blitz 2024"]
[Site "Rio de Janeiro"]
[Date "2024.04.27"]
[Round "6.3"]
[White "Lage, Pedro Ferreira"]
[Black "Hoffman, Alejandro"]
[Result "1-0"]
[ECO "E91"]
[WhiteElo "2061"]
[BlackElo "2379"]
[Annotator "TA"]
[PlyCount "90"]
[EventDate "2024.04.12"]
[EventType "swiss"]
[EventCountry "BRA"]
[SourceTitle "playchess.com"]
[Source "ChessBase"]
[SourceQuality "1"]
[TimeControl "180+2"]

{[%evp 19,90,71,85,70,77,72,91,72,87,76,83,79,89,76,88,73,84,68,193,104,143,95,181,140,128,0,273,224,198,-6,79,0,176,70,63,43,82,25,28,-48,0,-110,-100,-132,-127,-99,-67,-81,-81,-143,-141,-160,0,0,0,-135,-129,-185,-170,-121,-165,-278,-253,-287,-292,-983,-967,-726,-50,-50,-53,-354,-196]} 1. Nf3 {[%emt 0:00:03]} g6 {[%emt 0:00:01]} 2. c4 {[%emt 0:00:04]} Bg7 {[%emt 0:00:02]} 3. Nc3 {[%emt 0:00:04]} Nf6 {[%emt 0:00:03]} 4. e4 {[%emt 0:00:01]} d6 {[%emt 0:00:02]} 5. d4 {[%emt 0:00:02][%cal Bd2d4,Bd4d5][%mdl 32]} O-O {[%emt 0:00:03]} 6. Be2 {[%emt 0:00:01]} c5 {[%emt 0:00:02]} 7. O-O {[%emt 0:00:04]} Nc6 {[%emt 0:00:02]} 8. d5 {[%emt 0:00:15]} Na5 {[%emt 0:00:01]} 9. Bg5 {[%emt 0:00:11]} h6 {[%emt 0:00:06]} 10. Bd2 {[%emt 0:00:13]} e5 {[%emt 0:00:03]} 11. Ne1 {[%emt 0:00:38]} b6 {[%emt 0:00:07]} 12. b3 {[%emt 0:00:16]} Qe7 {[%emt 0:00:08]} 13. Qc2 {[%emt 0:00:20] White is better.} Nb7 {[%emt 0:00:05]} 14. Nd3 {[%emt 0:00:06]} Bd7 {[%emt 0:00:20]} 15. Rae1 {[%emt 0:00:05]} Rae8 {[%emt 0:00:06]} 16. Kh1 {[%emt 0:00:14]} Kh8 {[%emt 0:00:08]} 17. Bd1 {[%emt 0:00:15]} Ng8 {[%emt 0:00:15]} 18. f4 {[%emt 0:00:06] White is more active.} f5 {[%emt 0:00:09]} (18... exf4 $14 19. Bxf4 (19. Nxf4 a6 $16) (19. Rxf4 Kh7 $16) 19... Qf6) 19. Bf3 {[%emt 0:00:15]} (19. exf5 $18 Bxf5 20. g4) 19... Qf6 {[%emt 0:00:23]} 20. a4 {[%emt 0:00:13]} ({White should play} 20. Qd1) 20... a6 {[%emt 0:00:04]} (20... Qd8 $16 {might work better.}) 21. Qc1 {[%emt 0:00:05]} Kh7 {[%emt 0:00:15]} 22. Qc2 {[%emt 0:00:08]} (22. exf5 $16 gxf5 23. Ne4) 22... Re7 $2 {[%emt 0:00:04][%mdl 8192]} (22... Kh8 $1 $11) 23. fxe5 {[%emt 0:00:02]} dxe5 {[%emt 0:00:02]} 24. Nd1 $2 {[%emt 0:00:05]} (24. exf5 $18 {Threatens to win with Ne4.} Nd6 25. Ne4 Nxe4 26. Bxe4 (26. fxg6+ Qxg6 27. Rxe4 Bf5 $14) 26... gxf5 27. g4) 24... Nd6 {[%emt 0:00:02]} (24... fxe4 $1 $11 25. Rxe4 Nd6) 25. Nc3 {[%emt 0:00:02]} (25. Kg1 $16) 25... f4 $2 {[%emt 0:00:05]} (25... Nb7 $11) 26. Qd1 {[%emt 0:00:02]} (26. a5 $18) 26... a5 $14 {[%emt 0:00:10]} 27. Nb5 {[%emt 0:00:01]} h5 {[%emt 0:00:15]} 28. Nxd6 {[%emt 0:00:02]} (28. Rg1 $16) 28... Qxd6 $11 {[%emt 0:00:02]} 29. Nc1 {[%emt 0:00:03]} (29. Qe2 $11) 29... Nf6 {[%emt 0:00:02]} (29... g5 $1 $15) 30. Ne2 {[%emt 0:00:01] [#]} (30. g3 $11 {remains equal.}) 30... g5 $1 $17 {[%emt 0:00:05]} 31. Nc3 {[%emt 0:00:01][%cal Oc3b5]} g4 {[%emt 0:00:02]} 32. Be2 {[%emt 0:00:01]} Kg8 {[%emt 0:00:08]} 33. Bd3 {[%emt 0:00:02]} Bh6 {[%emt 0:00:05]} 34. g3 {[%emt 0:00:02] [#]} (34. Nb5 $142 Bxb5 35. cxb5) 34... Nh7 $1 {[%emt 0:00:16]} 35. gxf4 {[%emt 0:00:01]} exf4 $2 {[%emt 0:00:02]} (35... Bxf4 $17 {White must now prevent ...h4.} 36. Nb5 Qf6) 36. e5 {[%emt 0:00:04]} Rxe5 {[%emt 0:00:02]} 37. Rxe5 {[%emt 0:00:01]} (37. Ne4 $1 $11 {was the only way to keep the balance.} Rxe4 38. Bxe4) 37... Qxe5 {[%emt 0:00:02]} 38. Re1 {[%emt 0:00:00]} (38. Qe1 $17 Bg7 39. Qxe5 Bxe5 40. Re1) 38... Qg7 {[%emt 0:00:05] Hoping for ...g3.} 39. Ne4 {[%emt 0:00:03]} Bf5 {[%emt 0:00:06]} 40. Qc2 {[%emt 0:00:02]} (40. d6 $142) 40... f3 $19 {[%emt 0:00:03][%cal Bf4f3,Bf3f2][%mdl 32] And now ...Bxe4 would win.} 41. Bxh6 {[%emt 0:00:04]} Qxh6 {[%emt 0:00:01]} 42. Ng3 {[%emt 0:00:02]} (42. Nd2 Bc8 43. Bxh7+ Qxh7 44. Qe4) 42... Bxd3 {[%emt 0:00:06]} 43. Qxd3 {[%emt 0:00:01]} Ng5 $2 {[%emt 0:00:08]} (43... h4 $19 44. Nf5 Qf6) 44. d6 $15 {[%emt 0:00:02]} f2 $1 {[%emt 0:00:07]} 45. Re7 {[%emt 0:00:03][%mdl 8192]} ({Better is} 45. Qd5+ $15 Nf7 (45... Kh8 46. Rf1 $11) 46. Rf1 Qxd6 47. Rxf2) 45... Qf6 {[%emt 0:00:07][%mdl 32768] Black used his chance.   Weighted Error Value: White=0.83/Black=0.58.  Loses game:     	White=1     	Black=2      Missed win:     	White=1     	---        Mistake:       	White=13    	Black=6      Inaccurate:     	---       	Black=1      OK:         	White=4     	Black=9      Best:        	White=1     	Black=2      Strong:       	---       	Black=1     . Loss on time!?} (45... Rf3 $142 46. Qd5+ Nf7 47. Re8+ Kg7 (47... Kh7 $2 48. Nf1 $19)) 1-0